bitfinex-derivatives/quotes_BNBF0:USTF0_20250617
["timestamp","ask_amount","ask_price","bid_price","bid_amount"]
[1750184437959,1.04105448,643.6,643.02,0.872]
[1750184438156,0.27043304,643.82,643.02,0.872]
[1750184438362,1.04099371,643.81,643.02,0.872]
[1750184438557,1.04099371,643.8,643.02,0.872]
[1750184438861,1.04099371,643.79,643.02,0.872]
[1750184439058,1.04099371,643.78,643.02,0.872]
[1750184439262,1.04099371,643.77,643.03,0.875]
[1750184439460,1.04099371,643.76,643.03,0.875]
[1750184439663,1.04099371,643.75,643.03,0.875]
[1750184439861,1.04099371,643.74,643.03,0.875]
[1750184440060,1.04099371,643.73,643.03,0.875]
[1750184440361,1.04099371,643.72,643.03,3.18903955]
[1750184440664,1.04099371,643.71,643.03,3.18903955]
[1750184440863,1.04099371,643.7,643.03,3.18903955]
[1750184441176,1.04099371,643.69,643.03,3.18903955]
[1750184441367,1.04099371,643.68,643.03,3.18903955]
[1750184441569,1.04099371,643.67,643.03,3.18903955]
[1750184441863,1.04099371,643.66,643.03,3.18903955]
[1750184442170,1.04099371,643.65,643.03,3.18903955]
[1750184442367,1.04127533,643.64,643.03,0.875]
[1750184442567,0.27043304,643.82,643.03,0.875]
[1750184442765,1.04137854,643.81,643.03,0.875]
[1750184442964,1.04137854,643.8,643.03,0.875]
[1750184443471,1.04137854,643.79,643.03,0.875]
[1750184443670,1.04137854,643.78,643.03,0.875]
[1750184443969,1.04137854,643.77,643.03,0.875]
[1750184444169,1.04137854,643.76,643.03,0.875]
[1750184444368,1.04137854,643.75,643.03,0.875]
[1750184444570,1.04137854,643.74,643.03,0.875]
[1750184444768,1.04137854,643.73,643.03,0.875]
[1750184445072,1.04137854,643.72,643.04,1.198]
[1750184445273,1.04137854,643.71,643.04,1.198]
[1750184445473,1.04137854,643.7,643.04,1.198]
[1750184445770,1.04137854,643.69,643.04,1.198]
[1750184445975,1.04137854,643.68,643.04,1.198]
[1750184446276,1.04137854,643.67,643.04,1.198]
[1750184446580,1.04137854,643.66,643.04,1.198]
[1750184446771,1.04137854,643.65,643.04,1.198]
[1750184446974,1.04137854,643.64,643.04,1.198]
[1750184447270,1.04137854,643.63,643.04,1.198]
[1750184447471,1.04137854,643.62,643.04,1.198]
[1750184447671,1.04137854,643.61,643.04,1.198]
[1750184447873,1.04137854,643.6,643.04,1.198]
[1750184448076,1.04137854,643.59,643.04,1.198]
[1750184448274,1.04137854,643.58,643.04,1.198]
[1750184448476,1.04137854,643.57,643.04,1.198]
[1750184448773,1.04137854,643.56,643.04,1.198]
[1750184449075,1.1560216,643.8,643.04,1.198]
[1750184449273,1.04230342,643.79,643.04,1.198]
[1750184449473,1.04230342,643.78,643.04,1.198]
[1750184449772,1.04230342,643.77,643.04,1.198]
[1750184449976,1.04230342,643.76,643.04,1.198]
[1750184450276,1.04230342,643.75,643.04,1.198]
[1750184450478,1.04230342,643.74,643.04,1.198]
[1750184450777,1.04230342,643.73,643.04,1.198]
[1750184451078,1.04230342,643.72,643.04,1.198]
[1750184451272,1.04230342,643.71,643.04,1.198]
[1750184451476,1.04230342,643.7,643.04,1.198]
[1750184451673,1.04230342,643.69,643.04,1.198]
[1750184451970,1.04230342,643.68,643.04,1.198]
[1750184452172,1.04230342,643.67,643.04,1.198]
[1750184452370,1.04230342,643.66,643.04,1.198]
[1750184452572,1.04230342,643.65,643.04,1.198]
[1750184452773,1.04230342,643.64,643.04,1.198]
[1750184452970,1.04230342,643.63,643.04,1.198]
[1750184453172,1.04230342,643.62,643.04,1.198]
[1750184453376,1.04230342,643.61,643.04,1.198]
[1750184453575,1.04230342,643.6,643.04,1.198]
[1750184453773,1.04230342,643.59,643.04,1.198]
[1750184453977,1.04230342,643.58,643.05,0.926]
[1750184454176,1.04230342,643.57,643.05,0.926]
[1750184454375,1.04230342,643.56,643.05,0.926]
[1750184454578,1.1560216,643.8,643.05,0.926]
[1750184454778,1.04231945,643.79,643.05,3.24003955]
[1750184454978,1.04231945,643.78,643.05,3.24003955]
[1750184455277,1.04231945,643.77,643.05,3.24003955]
[1750184455476,1.04231945,643.76,643.05,3.24003955]
[1750184455677,1.04231945,643.75,643.05,3.24003955]
[1750184455876,1.04231945,643.74,643.11,2.31403955]
[1750184456075,1.04231945,643.73,643.12,2.31403955]
[1750184456274,1.04231945,643.72,643.13,2.31403955]
[1750184456479,1.04231945,643.71,643.15,2.31403955]
[1750184456679,1.04231945,643.7,643.14,2.31403955]
[1750184456977,1.04231945,643.69,643.15,2.31403955]
[1750184457273,0.27040362,643.9,643.17,2.31403955]
[1750184457473,1.04242417,643.89,643.17,2.31403955]
[1750184457777,1.04242417,643.88,643.17,2.31403955]
[1750184458074,1.04242417,643.87,643.19,2.31403955]
[1750184458278,1.04242417,643.86,643.19,2.31403955]
[1750184458574,1.04242417,643.85,643.2,2.31403955]
[1750184458878,1.04242417,643.84,643.19,2.31403955]
[1750184459179,1.04242417,643.83,643.19,2.31403955]
[1750184459474,1.04242417,643.82,643.2,2.31403955]
[1750184459678,1.04242417,643.81,643.19,2.31403955]
[1750184459978,1.04242417,643.8,643.07,2.31403955]
[1750184460176,1.04242417,643.79,643.06,2.31403955]
[1750184460380,1.04242417,643.78,643.06,2.31403955]
[1750184460675,1.04242417,643.77,643.06,2.31403955]
[1750184460876,1.04242417,643.76,643.06,2.31403955]
[1750184461079,1.04242417,643.75,643.07,1.366]
[1750184461279,1.04242417,643.74,643.07,1.366]
[1750184461480,1.04242417,643.73,643.07,1.366]
[1750184461679,1.04242417,643.72,643.07,1.366]
[1750184461879,1.04242417,643.71,643.07,1.366]
[1750184462076,1.04242417,643.7,643.07,1.366]
[1750184462275,0.27040362,643.9,643.07,1.366]
[1750184462479,1.04202751,643.89,643.07,1.366]
[1750184462676,1.04202751,643.88,643.07,1.366]
[1750184462879,1.04202751,643.87,643.07,1.366]
[1750184463177,1.04202751,643.86,643.07,3.68003955]
[1750184463374,1.04202751,643.85,643.07,3.68003955]
[1750184463579,1.04202751,643.84,643.07,3.68003955]
[1750184463779,1.04202751,643.83,643.07,3.68003955]
[1750184464080,1.04202751,643.82,643.07,3.68003955]
[1750184464378,1.04202751,643.81,643.07,3.68003955]
[1750184464580,1.04202751,643.8,643.07,3.68003955]
[1750184464779,1.04202751,643.79,643.07,1.366]
[1750184464976,1.04202751,643.78,643.07,1.366]
[1750184465182,1.04202751,643.77,643.08,1.136]
[1750184465480,1.04202751,643.76,643.08,1.136]
[1750184465679,1.04202751,643.75,643.08,1.136]
[1750184465876,1.04202751,643.74,643.08,1.136]
[1750184466081,1.04202751,643.73,643.08,1.136]
[1750184466278,1.04202751,643.72,643.08,1.136]
[1750184466481,1.04202751,643.71,643.08,1.136]
[1750184466781,1.04202751,643.7,643.08,1.136]
[1750184466980,1.04202751,643.69,643.08,1.136]
[1750184467178,0.27040362,643.9,643.08,1.136]
[1750184467179,1.04202751,643.68,643.08,1.136]
[1750184467381,1.04202751,643.67,643.08,1.136]
[1750184467581,1.04202751,643.66,643.08,1.136]
[1750184467880,1.04202751,643.65,643.08,1.136]
[1750184468076,1.04202751,643.64,643.08,1.136]
[1750184468281,1.04202751,643.63,643.08,1.136]
[1750184468479,1.04202751,643.62,643.08,1.136]
[1750184468783,0.27040362,643.9,643.08,1.136]
[1750184469082,1.04173965,643.89,643.08,1.136]
[1750184469284,1.04173965,643.88,643.08,1.136]
[1750184469582,1.04173965,643.87,643.08,1.136]
[1750184469779,1.04173965,643.86,643.08,1.136]
[1750184470082,1.04173965,643.85,643.08,1.136]
[1750184470279,1.04173965,643.84,643.08,1.136]
[1750184470483,1.04173965,643.83,643.08,1.136]
[1750184470683,1.04173965,643.82,643.08,1.136]
[1750184470982,1.04173965,643.81,643.08,1.136]
[1750184471180,1.04173965,643.8,643.08,1.136]
[1750184471383,1.04173965,643.79,643.08,1.136]
[1750184471582,1.04173965,643.78,643.08,1.136]
[1750184471784,1.1560216,643.85,643.08,1.136]
[1750184471785,1.04173965,643.77,643.08,1.136]
[1750184472084,1.04173965,643.76,643.08,1.136]
[1750184472282,1.04173965,643.75,643.08,1.136]
[1750184472580,1.04173965,643.74,643.08,1.136]
[1750184472781,1.04173965,643.73,643.08,1.136]
[1750184472983,1.04173965,643.72,643.08,1.136]
[1750184473185,1.04173965,643.71,643.08,1.136]
[1750184473383,1.04173965,643.7,643.08,1.136]
[1750184473584,1.04173965,643.69,643.08,1.136]
[1750184473784,1.04173965,643.68,643.08,1.136]
[1750184474086,1.04173965,643.67,643.08,1.136]
[1750184474289,1.04173965,643.66,643.08,1.136]
[1750184474485,1.04173965,643.65,643.08,1.136]
[1750184474787,1.04173965,643.64,643.08,1.136]
[1750184474988,1.04173965,643.63,643.08,1.136]
[1750184475185,1.04173965,643.62,643.08,1.136]
[1750184475389,1.1560216,643.84,643.08,1.136]
[1750184475689,1.04216408,643.83,643.08,1.136]
[1750184475889,1.04216408,643.82,643.08,1.136]
[1750184476088,1.04216408,643.81,643.08,1.136]
[1750184476287,1.04216408,643.8,643.08,1.136]
[1750184476585,1.04216408,643.79,643.08,1.136]
[1750184476785,1.04216408,643.78,643.08,3.45003955]
[1750184476985,1.04216408,643.77,643.08,3.45003955]
[1750184477286,1.04216408,643.76,643.08,3.45003955]
[1750184477483,1.04216408,643.75,643.08,3.45003955]
[1750184477686,1.04216408,643.74,643.08,3.45003955]
[1750184477889,1.04216408,643.73,643.08,1.136]
[1750184478093,1.04216408,643.72,643.08,1.136]
[1750184478290,1.04216408,643.71,643.08,1.136]
[1750184478492,1.04216408,643.7,643.08,1.136]
[1750184478691,1.04216408,643.69,643.08,1.136]
[1750184478890,1.04216408,643.68,643.08,1.136]
[1750184479185,1.04216408,643.67,643.08,1.136]
[1750184479389,1.04216408,643.66,643.08,3.45003955]
[1750184479592,1.04216408,643.65,643.08,3.45003955]
[1750184479792,1.04216408,643.64,643.08,3.45003955]
[1750184479991,1.04216408,643.63,643.08,1.136]
[1750184480291,1.04216408,643.62,643.08,3.45003955]
[1750184480489,1.04216408,643.61,643.08,1.136]
[1750184480691,1.04216408,643.6,643.08,1.136]
[1750184480890,1.04216408,643.59,643.08,1.136]
[1750184481095,1.04216408,643.58,643.08,1.136]
[1750184481392,1.04216408,643.57,643.08,1.136]
[1750184481591,1.1560216,643.79,643.08,1.136]
[1750184481799,1.04275302,643.78,643.08,1.136]
[1750184481999,1.04275302,643.77,643.08,1.136]
[1750184482295,1.04275302,643.76,643.07,1.366]
[1750184482494,1.04275302,643.75,643.07,1.366]
[1750184482793,1.04275302,643.74,643.07,1.366]
[1750184482996,1.04275302,643.73,643.07,1.366]
[1750184483197,1.04275302,643.72,643.07,1.366]
[1750184483497,1.04275302,643.71,643.08,2.31403955]
[1750184483693,1.04275302,643.7,643.07,3.68003955]
[1750184483897,1.04275302,643.69,643.07,3.68003955]
[1750184484095,1.04275302,643.68,643.07,3.68003955]
[1750184484395,1.04275302,643.67,643.11,2.31403955]
[1750184484598,1.04275302,643.66,643.14,2.31403955]
[1750184484895,1.04275302,643.65,643.14,2.31403955]
[1750184485094,1.04275302,643.64,643.14,2.31403955]
[1750184485294,1.1560216,643.83,643.14,2.31403955]
[1750184485499,1.04323491,643.82,643.14,2.31403955]
[1750184485697,1.04323491,643.81,643.14,2.31403955]
[1750184485897,1.04323491,643.8,643.15,1.156]
[1750184486100,1.04323491,643.79,643.15,1.156]
[1750184486397,1.04323491,643.78,643.15,1.156]
[1750184486595,1.04323491,643.77,643.15,1.156]
[1750184486796,1.04323491,643.76,643.15,1.156]
[1750184486996,1.04323491,643.75,643.15,1.156]
[1750184487196,1.04323491,643.74,643.15,1.156]
[1750184487395,1.04323491,643.73,643.15,1.156]
[1750184487598,1.04323491,643.72,643.15,1.156]
[1750184487800,1.04323491,643.71,643.15,1.156]
[1750184487995,1.04323491,643.7,643.15,1.156]
[1750184488194,1.1560216,643.84,643.15,1.156]
[1750184488195,1.04323491,643.69,643.15,1.156]
[1750184488396,1.04323491,643.68,643.15,1.156]
[1750184488600,1.04323491,643.67,643.15,1.156]
[1750184488797,1.04323491,643.66,643.15,1.156]
[1750184488998,1.04323491,643.65,643.15,1.156]
[1750184489300,1.04323491,643.64,643.15,1.156]
[1750184489502,1.1560216,643.84,643.15,1.156]
[1750184489697,1.04314622,643.83,643.15,1.156]
[1750184489901,1.04314622,643.82,643.15,1.156]
[1750184490103,1.04314622,643.81,643.15,1.156]
[1750184490300,1.04314622,643.8,643.15,3.47003955]
[1750184490498,1.04314622,643.79,643.15,3.47003955]
[1750184490702,1.04314622,643.78,643.15,3.47003955]
[1750184490897,1.04314622,643.77,643.15,3.47003955]
[1750184491100,1.04314622,643.76,643.15,3.47003955]
[1750184491298,1.04314622,643.75,643.15,3.47003955]
[1750184491503,1.04314622,643.74,643.15,1.156]
[1750184491698,1.04314622,643.73,643.15,1.156]
[1750184491900,1.04314622,643.72,643.15,1.156]
[1750184492104,1.04314622,643.71,643.15,1.156]
[1750184492303,1.04314622,643.7,643.15,1.156]
[1750184492501,1.04314622,643.69,643.15,1.156]
[1750184492800,1.1560216,643.81,643.15,1.156]
[1750184492801,1.04314622,643.68,643.15,1.156]
[1750184493106,1.04314622,643.67,643.15,1.156]
[1750184493301,1.04314622,643.66,643.15,1.156]
[1750184493605,1.04314622,643.65,643.15,1.156]
[1750184493799,1.04314622,643.64,643.15,1.156]
[1750184494003,1.04314622,643.63,643.15,1.156]
[1750184494201,1.04314622,643.62,643.15,1.156]
[1750184494405,1.04314622,643.61,643.15,1.156]
[1750184494602,1.04314622,643.6,643.15,1.156]
[1750184494806,1.04314622,643.59,643.15,1.156]
[1750184495104,1.04314622,643.58,643.15,1.156]
[1750184495307,1.04314622,643.57,643.15,1.156]
[1750184495504,1.1560216,643.78,643.15,1.156]
[1750184495706,1.04306863,643.77,643.15,1.156]
[1750184495906,1.04306863,643.76,643.15,1.156]
[1750184496104,1.04306863,643.75,643.15,1.156]
[1750184496310,1.04306863,643.74,643.15,1.156]
[1750184496506,1.04306863,643.73,643.15,1.156]
[1750184496704,1.04306863,643.72,643.15,1.156]
[1750184497009,1.04306863,643.71,643.15,1.156]
[1750184497310,1.04306863,643.7,643.15,1.156]
[1750184497509,1.04306863,643.69,643.15,1.156]
[1750184497708,1.04306863,643.68,643.15,1.156]
[1750184498007,1.04306863,643.67,643.08,1.14]
[1750184498206,1.04306863,643.66,643.08,1.14]
[1750184498408,1.04306863,643.65,643.08,1.14]
[1750184498605,1.1560216,643.85,643.08,1.14]
[1750184498606,1.04306863,643.64,643.08,1.14]
[1750184498809,1.04306863,643.63,643.08,1.14]
[1750184499109,1.1560216,643.86,643.08,3.45403955]
[1750184499306,1.04313835,643.85,643.09,2.31403955]
[1750184499507,1.04313835,643.84,643.09,2.31403955]
[1750184499706,1.04313835,643.83,643.09,2.31403955]
[1750184500007,1.04313835,643.82,643.09,2.31403955]
[1750184500207,1.04313835,643.81,643.1,2.31403955]
[1750184500404,1.04313835,643.8,643.1,2.31403955]
[1750184500607,1.04313835,643.79,643.1,2.31403955]
[1750184500805,1.04313835,643.78,643.1,2.31403955]
[1750184501010,1.04313835,643.77,643.1,2.31403955]
[1750184501309,0.27040362,643.9,643.08,1.14]
[1750184501310,1.04313835,643.76,643.11,1.452]
[1750184501507,1.1560216,643.89,643.11,1.452]
[1750184501508,1.04313835,643.75,643.11,1.452]
[1750184501706,1.04313835,643.74,643.11,1.452]
[1750184501909,1.04313835,643.73,643.11,1.452]
[1750184502108,1.04313835,643.72,643.11,1.452]
[1750184502308,1.04313835,643.71,643.11,1.452]
[1750184502506,1.04313835,643.7,643.11,1.452]
[1750184502705,1.04313835,643.69,643.11,1.452]
[1750184502909,1.04313835,643.68,643.11,1.452]
[1750184503106,1.04313835,643.67,643.11,1.452]
[1750184503407,1.04313835,643.66,643.11,1.452]
[1750184503605,1.04313835,643.65,643.11,1.452]
[1750184503805,1.42642522,643.9,643.11,1.452]
[1750184504011,1.04293575,643.89,643.11,1.452]
[1750184504208,1.04293575,643.88,643.11,1.452]
[1750184504411,1.04293575,643.87,643.11,1.452]
[1750184504608,1.04293575,643.86,643.11,1.452]
[1750184504914,1.04293575,643.85,643.11,1.452]
[1750184505116,1.04293575,643.84,643.11,1.452]
[1750184505314,1.04293575,643.83,643.11,1.452]
[1750184505517,1.04293575,643.82,643.11,1.452]
[1750184505716,1.04293575,643.81,643.11,1.452]
[1750184505912,1.04293575,643.8,643.11,1.452]
[1750184506216,1.04293575,643.79,643.11,1.452]
[1750184506417,1.04293575,643.78,643.11,1.452]
[1750184506613,1.04293575,643.77,643.11,1.452]
[1750184506812,1.55008097,644.09,643.11,1.452]
[1750184506813,1.04293575,643.76,643.13,2.31403955]
[1750184507013,1.04275108,643.75,643.11,3.76603955]
[1750184507215,1.04275108,643.74,643.11,3.76603955]
[1750184507415,1.1560216,644.0,643.11,3.76603955]
[1750184507613,1.04264119,643.99,643.11,3.76603955]
[1750184507918,1.04264119,643.98,643.13,2.31403955]
[1750184508121,1.04264119,643.97,643.13,2.31403955]
[1750184508320,1.04264119,643.96,643.19,2.31403955]
[1750184508522,1.04264119,643.95,643.2,2.31403955]
[1750184508718,1.04264119,643.94,643.2,2.31403955]
[1750184508923,1.04264119,643.93,643.2,2.31403955]
[1750184509119,1.04264119,643.93,643.12,0.863]
[1750184509120,1.04264119,643.92,643.21,2.31403955]
[1750184509422,1.04264119,643.91,643.2,2.31403955]
[1750184509624,1.04264119,643.9,643.2,2.31403955]
[1750184509920,1.04264119,643.89,643.2,2.31403955]
[1750184510125,1.1560216,644.04,643.2,2.31403955]
[1750184510126,1.04264119,643.88,643.2,2.31403955]
[1750184510324,1.04264119,643.87,643.2,2.31403955]
[1750184510521,1.04264119,643.86,643.2,2.31403955]
[1750184510824,1.04264119,643.85,643.2,2.31403955]
[1750184511018,1.04264119,643.84,643.2,2.31403955]
[1750184511219,1.04264119,643.83,643.2,2.31403955]
[1750184511424,1.04264119,643.82,643.19,2.31403955]
[1750184511720,1.04264119,643.81,643.19,2.31403955]
[1750184512023,1.42638741,644.05,643.19,2.31403955]
[1750184512224,1.04220473,644.04,643.19,2.31403955]
[1750184512418,1.04220473,644.03,643.19,2.31403955]
[1750184512724,1.04220473,644.02,643.18,2.31403955]
[1750184512924,1.04220473,644.01,643.19,2.31403955]
[1750184513120,1.04220473,644.0,643.19,2.31403955]
[1750184513320,1.04220473,643.99,643.19,2.31403955]
[1750184513525,1.04220473,643.98,643.19,2.31403955]
[1750184513724,1.04220473,643.97,643.19,2.31403955]
[1750184514025,1.04220473,643.96,643.18,2.31403955]
[1750184514321,1.04220473,643.95,643.19,2.386]
[1750184514526,1.04220473,643.94,643.19,2.386]
[1750184514726,1.04220473,643.93,643.26,2.31403955]
[1750184514925,1.04220473,643.92,643.26,2.31403955]
[1750184515121,1.04220473,643.91,643.27,1.09]
[1750184515425,1.04220473,643.9,643.27,3.40403955]
[1750184515721,1.04220473,643.89,643.27,3.40403955]
[1750184515925,1.04220473,643.88,643.27,3.40403955]
[1750184516224,1.04220473,643.87,643.27,3.40403955]
[1750184516421,1.42638741,644.05,643.27,3.40403955]
[1750184516422,1.04220473,643.86,643.27,1.09]
[1750184516721,1.04220473,643.85,643.27,1.09]
[1750184516925,1.42638741,644.05,643.27,1.09]
[1750184517225,1.03369758,644.04,643.27,3.40403955]
[1750184517524,1.03369758,644.03,643.27,1.09]
[1750184517722,1.03369758,644.02,643.27,1.09]
[1750184518024,1.03369758,644.01,643.27,3.40403955]
[1750184518222,1.03369758,644.0,643.28,2.31403955]
[1750184518421,1.03369758,643.99,643.28,2.31403955]
[1750184518721,1.42638741,644.05,643.29,2.31403955]
[1750184518722,1.03369758,643.98,643.29,2.31403955]
[1750184518922,1.03369758,643.97,643.27,1.09]
[1750184519225,1.03369758,643.96,643.27,1.09]
[1750184519428,1.03369758,643.95,643.27,1.09]
[1750184519624,1.03369758,643.94,643.27,1.09]
[1750184519924,1.03369758,643.93,643.27,1.09]
[1750184520128,0.27036581,644.05,643.27,1.09]
[1750184520129,1.03369758,643.92,643.27,1.09]
[1750184520328,1.03369758,643.91,643.27,1.09]
[1750184520528,1.03369758,643.9,643.27,1.09]
[1750184520824,1.03369758,643.89,643.27,1.09]
[1750184521028,1.03369758,643.88,643.27,1.09]
[1750184521331,1.03369758,643.87,643.27,1.09]
[1750184521525,1.03369758,643.86,643.28,2.31403955]
[1750184521727,1.42638741,644.05,643.28,2.31403955]
[1750184521928,1.03342994,644.04,643.28,2.31403955]
[1750184522129,1.03342994,644.03,643.28,2.31403955]
[1750184522330,1.03342994,644.02,643.28,2.31403955]
[1750184522525,1.03342994,644.01,643.28,2.31403955]
[1750184522725,1.03342994,644.0,643.28,2.31403955]
[1750184522929,1.03342994,643.99,643.28,2.31403955]
[1750184523129,1.03342994,643.98,643.28,2.31403955]
[1750184523428,1.03342994,643.97,643.28,2.31403955]
[1750184523627,1.03342994,643.96,643.28,2.31403955]
[1750184523828,1.03342994,643.95,643.28,2.31403955]
[1750184524031,1.03342994,643.94,643.28,2.31403955]
[1750184524237,1.03342994,643.93,643.28,2.31403955]
[1750184524436,1.03342994,643.92,643.28,2.31403955]
[1750184524639,1.03342994,643.91,643.27,3.40403955]
[1750184524936,1.03342994,643.9,643.27,3.40403955]
[1750184525134,1.03342994,643.89,643.27,3.40403955]
[1750184525432,1.03342994,643.88,643.27,3.40403955]
[1750184525637,1.03342994,643.87,643.27,3.40403955]
[1750184525836,0.27036581,644.05,643.27,3.40403955]
[1750184526033,1.03315443,644.04,643.27,3.40403955]
[1750184526333,1.03315443,644.03,643.27,3.40403955]
[1750184526531,1.03315443,644.02,643.27,3.40403955]
[1750184526732,1.03315443,644.01,643.27,3.40403955]
[1750184526932,1.03315443,644.0,643.27,3.40403955]
[1750184527134,1.03315443,643.99,643.27,1.09]
[1750184527333,1.03315443,643.98,643.27,1.09]
[1750184527538,1.03315443,643.97,643.27,1.09]
[1750184527834,0.27030596,644.13,643.27,1.09]
[1750184528034,1.03321824,644.12,643.27,1.09]
[1750184528238,1.03321824,644.11,643.27,1.09]
[1750184528438,1.03321824,644.1,643.27,1.09]
[1750184528738,1.03321824,644.09,643.27,1.09]
[1750184528938,1.03321824,644.08,643.27,1.09]
[1750184529142,1.03321824,644.07,643.27,1.09]
[1750184529339,1.03321824,644.06,643.27,1.09]
[1750184529538,1.03321824,644.05,643.27,1.09]
[1750184529736,1.03321824,644.04,643.27,1.09]
[1750184530039,1.03321824,644.03,643.27,1.09]
[1750184530241,1.03321824,644.02,643.27,1.09]
[1750184530442,1.03321824,644.01,643.27,1.09]
[1750184530639,0.27030596,644.13,643.27,1.09]
[1750184530843,1.03231498,644.12,643.27,1.09]
[1750184531143,1.03231498,644.11,643.27,1.09]
[1750184531337,1.03231498,644.1,643.27,1.09]
[1750184531540,1.03231498,644.09,643.27,1.09]
[1750184531738,1.03231498,644.08,643.27,1.09]
[1750184531941,1.03231498,644.07,643.27,1.09]
[1750184532144,1.03231498,644.06,643.27,1.09]
[1750184532441,0.27030596,644.13,643.27,1.09]
[1750184532442,1.03231498,644.05,643.27,1.09]
[1750184532745,1.03231498,644.04,643.27,1.09]
[1750184532944,0.27030596,644.13,643.27,1.09]
[1750184532945,1.03231498,644.03,643.27,1.09]
[1750184533145,1.03231498,644.02,643.27,1.09]
[1750184533343,1.03231498,644.01,643.27,1.09]
[1750184533642,1.03231498,644.0,643.27,1.09]
[1750184533841,1.03231498,643.99,643.27,1.09]
[1750184534147,0.27030596,644.13,643.27,1.09]
[1750184534346,1.0316308,644.12,643.27,1.09]
[1750184534541,1.0316308,644.11,643.27,1.09]
[1750184534841,1.0316308,644.1,643.27,1.09]
[1750184535043,1.0316308,644.09,643.27,1.09]
[1750184535345,1.0316308,644.08,643.27,1.09]
[1750184535544,1.0316308,644.07,643.27,1.09]
[1750184535845,1.0316308,644.06,643.27,1.09]
[1750184536149,1.0316308,644.05,643.27,1.09]
[1750184536349,1.0316308,644.04,643.27,1.09]
[1750184536649,1.0316308,644.03,643.27,1.09]
[1750184536945,1.0316308,644.02,643.27,1.09]
[1750184537148,1.0316308,644.01,643.27,1.09]
[1750184537344,1.0316308,644.0,643.27,1.09]
[1750184537547,1.0316308,643.99,643.27,1.09]
[1750184537746,1.0316308,643.98,643.27,1.09]
[1750184537950,1.0316308,643.97,643.27,1.09]
[1750184538253,1.0316308,643.96,643.28,1.073]
[1750184538446,1.0316308,643.95,643.28,1.073]
[1750184538651,1.0316308,643.94,643.28,1.073]
[1750184538952,1.0316308,643.93,643.28,1.073]
[1750184539148,1.0316308,643.92,643.28,1.073]
[1750184539351,1.0316308,643.91,643.28,1.073]
[1750184539652,1.0316308,643.9,643.28,1.073]
[1750184539849,1.0316308,643.89,643.28,1.073]
[1750184540049,1.1560216,644.12,643.28,1.073]
[1750184540253,1.0312597,644.11,643.28,1.073]
[1750184540454,1.0312597,644.1,643.28,1.073]
[1750184540654,1.0312597,644.09,643.28,1.073]
[1750184540851,1.0312597,644.08,643.28,1.073]
[1750184541050,1.0312597,644.07,643.28,1.073]
[1750184541349,1.0312597,644.06,643.28,1.073]
[1750184541551,0.27030596,644.13,643.28,1.073]
[1750184541552,1.0312597,644.05,643.28,1.073]
[1750184541750,1.0312597,644.04,643.29,0.911]
[1750184541951,1.0312597,644.03,643.29,0.911]
[1750184542254,1.0312597,644.02,643.29,0.911]
[1750184542450,1.0312597,644.01,643.29,0.911]
[1750184542653,1.0312597,644.0,643.29,0.911]
[1750184542853,1.0312597,643.99,643.29,0.911]
[1750184543050,1.0312597,643.98,643.29,0.911]
[1750184543353,1.0312597,643.97,643.29,0.911]
[1750184543554,1.0312597,643.96,643.29,0.911]
[1750184543851,1.0312597,643.95,643.29,0.911]
[1750184544054,1.0312597,643.94,643.29,0.911]
[1750184544351,1.0312597,643.93,643.29,0.911]
[1750184544550,1.0312597,643.92,643.29,0.911]
[1750184544750,1.0312597,643.91,643.29,0.911]
[1750184544950,1.0312597,643.9,643.29,0.911]
[1750184545151,0.27030596,644.13,643.29,0.911]
[1750184545152,1.0312597,643.89,643.29,0.911]
[1750184545354,1.0312597,643.88,643.29,0.911]
[1750184545654,1.0312597,643.87,643.29,0.911]
[1750184545851,1.0312597,643.86,643.29,0.911]
[1750184546156,1.1560216,644.08,643.29,0.911]
[1750184546349,1.04242515,644.07,643.29,0.911]
[1750184546552,1.04242515,644.06,643.29,0.911]
[1750184546850,1.04242515,644.05,643.3,1.158]